bitfinex/quotes_ETHUSD_20220109
["timestamp","ask_amount","ask_price","bid_price","bid_amount"]
[1641747609377,0.764263,3165.4,3165.0,0.241]
[1641747609574,6.8751,3165.3,3165.0,0.241]
[1641747609773,6.89613167,3165.3,3165.0,0.241]
[1641747609973,0.02046324,3165.2,3165.0,0.241]
[1641747610371,6.8751,3165.3,3164.3,0.10859387]
[1641747610372,0.01989482,3165.1,3164.3,0.10859387]
[1641747610575,0.79028,3164.9,3164.3,0.10859387]
[1641747610771,0.4753264,3165.0,3164.3,0.10859387]
[1641747610971,0.01818955,3164.8,3164.3,0.10859387]
[1641747611173,14.556,3164.7,3164.0,0.10859387]
[1641747611373,0.79043,3164.6,3164.0,0.10859387]
[1641747611580,1.95762561,3164.4,3164.0,0.10859387]
[1641747611775,14.05,3164.2,3163.7,0.04568774]
[1641747611976,14.05,3164.2,3162.7,0.10859387]
[1641747611977,14.1,3164.1,3162.7,0.10859387]
[1641747612249,14.1,3164.1,3163.1,9.387e-05]
[1641747612250,0.456,3164.0,3163.1,9.387e-05]
[1641747612441,3.16343,3163.6,3162.7,9.387e-05]
[1641747612637,3.16343,3163.6,3162.1,0.10859387]
[1641747612638,0.79094,3162.9,3162.1,0.10859387]
[1641747612842,1.24694,3162.9,3162.1,0.10859387]
[1641747613038,0.00682108,3162.8,3162.1,0.10859387]
[1641747613441,0.00625266,3162.7,3162.1,0.10859387]
[1641747613941,0.00568423,3162.6,3162.1,0.10859387]
[1641747614146,1.84568788,3163.3,3162.1,0.10859387]
[1641747614147,0.456,3163.3,3162.1,0.10859387]
[1641747614644,0.764263,3162.8,3162.1,0.10859387]
[1641747614844,6.647,3162.7,3162.1,0.10859387]
[1641747615243,6.597,3162.7,3162.1,0.01671426]
[1641747616370,6.597,3162.7,3162.4,0.01671426]
[1641747616570,7.38788,3162.7,3162.4,0.01671426]
[1641747616972,10.7518449,3162.7,3162.4,0.01671426]
[1641747617171,0.79086,3162.6,3162.4,0.01671426]
[1641747617373,17.6362169,3162.5,3162.4,1.426e-05]
[1641747617575,0.7910447,3162.3,3162.1,0.01671426]
[1641747617775,6.597,3162.7,3162.4,0.00113684]
[1641747618773,7.38788,3162.7,3161.9,0.00397896]
[1641747619629,6.597,3162.7,3161.9,0.00397896]
[1641747619823,6.597,3162.7,3161.8,0.10859387]
[1641747619824,11.6,3162.6,3161.8,0.01257283]
[1641747620123,0.764263,3162.3,3161.8,0.01257283]
[1641747620530,0.00170527,3162.2,3161.8,2.75760201]
[1641747620725,0.00170527,3162.2,3161.9,1.22804458]
[1641747620926,0.764263,3162.3,3161.9,1.22804458]
[1641747620927,0.00113685,3162.1,3161.9,1.22804458]
[1641747621326,0.00170527,3162.2,3161.9,1.22804458]
[1641747621526,0.00170527,3162.2,3161.9,1.22884458]
[1641747621727,0.00113685,3162.1,3161.9,1.22884458]
[1641747622132,6.597,3162.7,3162.2,10.55]
[1641747622328,6.597,3162.7,3162.6,8.86214005]
[1641747622528,7.9368,3164.2,3162.6,0.01214005]
[1641747622727,4.26,3164.2,3162.6,0.01214005]
[1641747622930,0.01080004,3164.1,3163.0,1.478376]
[1641747623375,0.01023162,3164.0,3163.0,1.478376]
[1641747623769,0.0096632,3163.9,3163.0,1.478376]
[1641747624070,4.26,3164.2,3163.0,1.478376]
[1641747624071,0.00909477,3163.8,3163.0,1.478376]
[1641747624269,0.00909477,3163.8,3163.1,3.08146932]
[1641747624474,4.06,3164.2,3163.1,3.08146932]
[1641747624671,6.3455,3164.1,3163.1,3.08146932]
[1641747624970,6.3455,3164.1,3163.1,1.2563365]
[1641747624971,6.35630004,3164.1,3163.1,1.2563365]
[1641747625573,6.35630004,3164.1,3163.1,2.35843426]
[1641747625776,6.35630004,3164.1,3163.0,0.00181577]
[1641747625975,7.14683004,3164.1,3163.0,0.00181577]
[1641747626373,7.93733004,3164.1,3163.0,0.00283316]
[1641747626573,7.9,3164.0,3162.7,2.81375966]
[1641747626773,7.9,3164.0,3163.1,1.15782024]
[1641747626977,0.0096632,3163.9,3163.0,0.00305673]
[1641747627424,0.00909477,3163.8,3163.0,0.00305673]
[1641747627628,0.00909477,3163.8,3163.0,0.00407736]
[1641747627825,0.00852635,3163.7,3163.0,0.00509799]
[1641747628126,0.00795793,3163.6,3163.0,0.00509799]
[1641747628325,0.00795793,3163.6,3163.0,0.00611808]
[1641747628526,0.0073895,3163.5,3163.0,0.00611808]
[1641747628925,0.00682108,3163.4,3163.0,0.00713688]
[1641747629326,0.00625266,3163.3,3163.0,0.00713688]
[1641747629730,0.00568423,3163.2,3163.0,0.00713688]
[1641747630130,0.00511581,3163.1,3163.0,0.00895098]
[1641747630331,0.00367581,3163.1,3163.0,0.00895098]
[1641747630529,0.00367581,3163.1,3161.7,1.79839774]
[1641747630530,0.47104682,3162.0,3161.7,1.79839774]
[1641747630741,0.47104682,3162.0,3161.1,1.43966426]
[1641747630742,1.07415813,3161.7,3161.2,0.02928709]
[1641747630982,6.3901,3161.6,3161.2,0.02928709]
[1641747631376,1.07415813,3161.7,3161.2,0.02928709]
[1641747631577,1.07415813,3161.7,3161.4,18.82]
[1641747631778,0.47104682,3162.0,3161.7,1.07415813]
[1641747631976,0.47104682,3162.0,3161.8,18.82]
[1641747632376,0.47104682,3162.0,3161.9,6.10200842]
[1641747632578,0.47104682,3162.0,3161.9,26.47741498]
[1641747632777,6.1633,3162.8,3162.1,18.82]
[1641747632979,0.00424424,3163.0,3162.3,18.8328959]
[1641747633177,0.1,3164.4,3162.9,18.82]
[1641747633178,6.6012,3164.3,3162.9,18.82]
[1641747633378,6.6012,3164.3,3163.6,0.01201527]
[1641747633578,6.6012,3164.3,3163.6,0.67941527]
[1641747633780,6.6012,3164.3,3163.7,5.0722617]
[1641747633978,6.6012,3164.3,3163.8,1.18112699]
[1641747634379,0.01096005,3163.9,3163.8,1.18112699]
[1641747635229,6.46216005,3164.3,3163.8,1.18112699]
[1641747635522,0.00170527,3164.2,3163.8,1.18112699]
[1641747635919,0.00113684,3164.1,3163.8,1.18112699]
[1641747636920,0.0064,3163.9,3163.8,1.18214554]
[1641747637422,0.0064,3163.9,3163.8,1.18316487]
[1641747638125,0.0064,3163.9,3163.8,1.18418501]
[1641747638380,0.0064,3163.9,3163.8,1.20089927]
[1641747639383,0.0064,3163.9,3163.8,1.2134721]
[1641747639584,0.0064,3163.9,3163.8,3.98395385]
[1641747639784,0.0064,3163.9,3163.8,9.18395385]
[1641747639987,0.00113684,3164.1,3163.8,29.79213309]
[1641747640184,0.48739496,3165.1,3163.9,15.75893]
[1641747640486,0.48739496,3165.1,3164.4,0.78985]
[1641747640685,0.48739496,3165.1,3164.5,21.90752483]
[1641747640883,0.48739496,3165.1,3164.4,1.5796412]
[1641747641084,0.48739496,3165.1,3164.6,1.37382027]
[1641747641484,0.07899,3165.0,3164.6,1.37382027]
[1641747641887,0.48739496,3165.1,3164.6,1.37382027]
[1641747642127,0.48739496,3165.1,3164.7,1.32243376]
[1641747642320,0.48739496,3165.1,3164.7,1.27243376]
[1641747642525,0.1720462,3164.8,3164.6,1.45281027]
[1641747642721,0.03008385,3165.6,3164.7,0.78988]
[1641747642921,0.07898,3165.6,3164.6,1.45279027]
[1641747643220,0.00113685,3165.0,3164.6,1.45279027]
[1641747643420,0.00113685,3165.0,3164.6,1.37382027]
[1641747643621,0.00113685,3165.0,3164.6,2.48129128]
[1641747644020,0.00113685,3165.0,3164.6,3.27124128]
[1641747644621,0.00113685,3165.0,3164.6,2.56028128]
[1641747645021,0.00113685,3165.0,3164.6,2.48129128]
[1641747645224,0.00113685,3165.0,3164.6,4.06114918]
[1641747646092,0.00113685,3165.0,3164.6,4.53507918]
[1641747646291,0.00113685,3165.0,3164.8,0.78985]
[1641747646492,0.00113685,3165.0,3164.6,2.48129128]
[1641747646894,0.00113685,3165.0,3164.5,0.04600135]
[1641747647293,0.00113685,3165.0,3164.6,0.00113684]
[1641747648196,0.00113685,3165.0,3164.8,1.39899844]
[1641747648696,6.49717301,3165.7,3164.8,1.39899844]
[1641747648895,6.49717301,3165.7,3164.6,0.00113684]
[1641747649095,0.00341054,3165.6,3164.6,0.00113684]
[1641747649296,0.00341054,3165.6,3164.6,0.0022737]
[1641747649495,0.00284211,3165.5,3164.6,0.7922237]
[1641747649732,0.00284211,3165.5,3164.6,0.0022737]
[1641747649933,0.00227369,3165.4,3164.7,0.00170527]
[1641747650132,0.00227369,3165.4,3164.6,0.0022737]
[1641747650335,0.00170527,3165.3,3164.6,0.0022737]
[1641747650733,0.00113684,3165.2,3164.6,0.0022737]
[1641747651233,3.20113684,3165.2,3164.8,1.13578892]
[1641747651434,3.20113684,3165.2,3164.9,2.78162211]
[1641747651635,3.20113684,3165.2,3164.6,0.0812437]
[1641747651934,3.20113684,3165.2,3164.7,0.00170527]
[1641747652334,3.20113684,3165.2,3164.6,0.0022737]
[1641747652335,0.00113684,3165.2,3164.6,0.0022737]
[1641747652535,0.00113684,3165.2,3164.8,1.09215633]
[1641747652940,0.00113684,3165.2,3164.6,0.0022737]
[1641747653371,1.11047301,3165.7,3164.6,0.0022737]
[1641747653372,1.06160985,3165.7,3164.7,20.71935141]
[1641747653571,1.06160985,3165.7,3164.8,0.07897]
[1641747653773,0.00170527,3165.5,3165.0,0.78977]
[1641747653972,0.00170527,3165.5,3164.8,4.48816193]
[1641747653973,0.00170527,3165.5,3165.2,1.02350957]
[1641747654176,2.08403361,3166.6,3165.3,6.35]
[1641747654374,2.08403361,3166.6,3166.3,1.55421662]
[1641747654573,2.03403361,3166.6,3166.3,1.0642]
[1641747655172,2.03403361,3166.6,3166.4,1.06654422]
[1641747655576,2.03403361,3166.6,3166.4,0.78951]
[1641747655772,0.10362547,3166.7,3166.3,1.0642]
[1641747655972,0.10362547,3166.7,3165.3,4.40669824]
[1641747656173,0.00682108,3166.6,3166.0,1.21959376]
[1641747656571,0.00625266,3166.5,3166.2,0.78957]
[1641747656773,0.00625266,3166.5,3166.0,2.23999945]
[1641747656976,0.00568423,3166.4,3165.6,0.07895]
[1641747657234,0.00568423,3166.4,3165.5,0.07896]
[1641747657430,0.00511581,3166.3,3165.5,0.07896]
[1641747657833,0.10362547,3166.7,3165.5,0.07896]
[1641747657834,0.00454739,3166.2,3165.5,0.07896]
[1641747658136,0.00397896,3166.1,3165.5,0.07896]
[1641747658531,4.51082547,3166.7,3165.5,0.07896]
[1641747658532,0.00341054,3166.0,3165.5,0.07896]
[1641747658934,0.00284212,3165.9,3165.5,0.07896]
[1641747659435,0.00227369,3165.8,3165.5,0.07896]
[1641747659833,0.00170527,3165.7,3165.5,0.07896]
[1641747660236,0.00113685,3165.6,3165.1,21.70581584]
[1641747660435,0.00113685,3165.6,3165.2,1.5793357]
[1641747660638,5.15672547,3166.7,3165.4,18.83204623]
[1641747660639,0.00397896,3166.1,3165.4,18.83204623]
[1641747660876,0.00397896,3166.1,3165.5,0.07896]
[1641747661073,0.00341054,3166.0,3165.7,0.7895972]
[1641747661273,0.00341054,3166.0,3165.9,1.48873648]
[1641747661474,5.15672547,3166.7,3165.9,1.48873648]
[1641747661876,0.00682108,3166.6,3165.9,1.48873648]
[1641747662077,0.00682108,3166.6,3165.9,2.27833648]
[1641747662278,2.40452105,3166.8,3165.9,2.27833648]
[1641747662279,2.40452105,3166.8,3166.0,11.9]
[1641747662478,2.40452105,3166.8,3166.7,1.37360678]
[1641747662479,1.90452105,3166.8,3166.7,1.37360678]
[1641747662678,0.00113684,3166.7,3166.1,0.0148542]
[1641747662881,0.00113684,3166.7,3166.1,0.3938542]
[1641747663076,0.00113684,3166.7,3165.9,1.57881]
[1641747663077,0.73460423,3166.0,3165.9,1.57881]
[1641747663282,0.73460423,3166.0,3165.9,0.86849]
[1641747663478,0.73460423,3166.0,3165.9,2.18675992]
[1641747663678,0.00227369,3166.6,3166.0,5.85]
[1641747663879,0.00227369,3166.6,3166.2,0.78941]
[1641747664079,0.00170527,3166.5,3166.2,0.78941]
[1641747664284,0.01592855,3167.0,3166.4,7.60241361]
[1641747664481,0.01592855,3167.0,3166.5,22.06372584]
[1641747664732,0.00113684,3166.7,3166.6,2.58564941]
[1641747664937,0.01592855,3167.0,3166.6,22.23712941]
[1641747665137,0.01592855,3167.0,3166.7,18.87786]
[1641747665437,3.444e-05,3167.4,3166.9,4.31244348]
[1641747665634,4.0,3168.3,3167.0,0.07892]
[1641747665838,4.0,3168.3,3167.5,0.01292708]
[1641747665839,0.29867227,3168.0,3167.5,0.01292708]
[1641747666035,4.63865546,3168.9,3167.9,0.01258181]
[1641747666234,4.63865546,3168.9,3168.2,0.7890122]
[1641747666434,4.63865546,3168.9,3168.3,21.60578584]
[1641747666634,4.63865546,3168.9,3168.4,0.07888]
[1641747666835,4.63865546,3168.9,3168.2,0.2292]
[1641747667035,1.27271691,3168.7,3168.0,0.379]
[1641747667237,0.07889,3168.8,3167.8,0.07889]
[1641747667440,0.0073895,3168.6,3167.6,0.07889]
[1641747667637,0.0789,3168.5,3167.2,0.0789]
[1641747667838,0.08572108,3168.5,3167.3,0.78925]
[1641747668036,0.00625265,3168.4,3167.4,0.0789]
[1641747668238,1.48231708,3167.9,3167.1,0.21422002]
[1641747668491,1.48231708,3167.9,3167.1,0.00113685]
[1641747668685,0.08176211,3167.8,3167.1,0.00113685]
[1641747668885,0.08176211,3167.8,3166.8,0.00284212]
[1641747669083,1.05464065,3167.4,3166.8,0.00284212]
[1641747669384,1.05464065,3167.4,3165.8,5.66997342]
[1641747669385,0.01241098,3167.1,3166.3,0.00568424]
[1641747669581,0.01241098,3167.1,3166.3,0.00228424]
[1641747669582,0.78986,3166.6,3166.3,0.00228424]
[1641747669784,0.78986,3166.6,3165.9,0.00455793]
[1641747669785,0.06223574,3166.5,3165.9,0.00455793]
[1641747669984,0.06223574,3166.5,3165.4,0.00740005]
[1641747670182,0.02896,3166.7,3165.5,1.20296531]
[1641747670386,0.07896,3166.7,3165.6,0.01271097]
[1641747670583,0.07896,3166.7,3165.6,0.01897417]
[1641747670785,0.07896,3166.7,3165.7,0.00569478]
[1641747670986,1.20236,3166.8,3165.7,0.00569478]
[1641747671591,3.0,3166.7,3165.7,0.00569478]
[1641747671783,3.0,3166.7,3166.3,0.01235936]
[1641747671984,3.0,3166.7,3165.8,0.07895]
[1641747672229,3.0,3166.7,3165.4,2.68311674]
[1641747672230,3.0,3166.7,3166.4,0.00171582]
[1641747672427,0.03116,3166.8,3165.9,0.00455793]
[1641747672628,0.03116,3166.8,3165.6,0.0062632]
[1641747672827,0.0011263,3166.9,3165.6,0.0852132]
[1641747673126,0.0011263,3166.9,3165.7,0.00569478]
[1641747673533,0.0011263,3166.9,3165.8,0.07895]
[1641747673926,0.0011263,3166.9,3165.9,0.00455793]
[1641747674126,1.16075792,3167.1,3165.9,0.00455793]
[1641747674325,1.0697263,3167.2,3165.9,0.00455793]
[1641747674526,0.00113685,3167.1,3165.9,0.01791449]
[1641747674726,0.00113685,3167.1,3166.0,0.07895]
[1641747674927,0.00113685,3167.1,3166.0,0.00511581]
[1641747675129,0.00113685,3167.1,3166.1,0.00454739]
[1641747675130,0.78984,3166.8,3166.1,0.00454739]
[1641747675326,0.00113685,3167.1,3166.1,0.8304]
[1641747675725,0.00113685,3167.1,3166.3,1.45921682]
[1641747676189,0.00113685,3167.1,3166.4,0.00284212]
[1641747676588,0.00113685,3167.1,3166.3,0.00341054]
[1641747677386,1.2030184,3167.1,3166.3,0.00341054]
[1641747677686,8.71813179,3167.3,3165.9,0.00568423]
[1641747677887,8.71813179,3167.3,3165.9,0.00682108]
[1641747677888,9.50779929,3167.3,3165.9,0.00682108]
[1641747678087,1.35599457,3166.1,3165.9,0.00682108]
[1641747678287,0.78988,3166.7,3165.9,0.00682108]
[1641747678288,1.1278,3166.6,3165.9,0.00682108]
[1641747678690,9.09713179,3167.3,3165.9,0.00682108]
[1641747678691,8.71813179,3167.3,3165.9,0.00682108]
[1641747678887,7.556,3167.2,3165.9,0.00682108]
[1641747679087,7.556,3167.2,3166.0,0.07895]
[1641747679287,7.556,3167.2,3166.3,1.25357656]
[1641747679488,7.556,3167.2,3166.1,0.00568424]
[1641747679742,7.556,3167.2,3166.4,0.00397897]
[1641747679936,7.556,3167.2,3165.9,0.00682108]
[1641747680139,7.556,3167.2,3166.2,0.00511581]
[1641747680339,7.556,3167.2,3165.9,1.58592108]
[1641747680535,7.556,3167.2,3165.9,1.23713608]
[1641747680735,1.32147796,3167.0,3166.0,0.00625266]
[1641747681137,0.78987,3166.6,3166.0,0.00625266]
[1641747681348,0.0121442,3166.1,3165.6,0.00171816]
[1641747681537,5.0675442,3166.1,3165.6,0.00171816]
[1641747681938,6.327977,3166.1,3165.6,0.00171816]
[1641747682539,5.0675442,3166.1,3165.6,0.00171816]
[1641747682738,0.79004,3166.0,3165.6,0.00171816]
[1641747683140,0.00113685,3165.9,3165.6,0.00171816]
[1641747683580,7.57413021,3165.9,3165.6,0.00171816]
[1641747683779,9.94437981,3165.9,3165.6,0.00087659]
[1641747683985,9.94437981,3165.9,3165.7,0.00113685]
[1641747684279,17.21521234,3165.8,3165.7,0.00113685]
[1641747684481,14.1,3165.7,3165.2,0.03404552]
[1641747684680,3.11751932,3165.6,3165.2,0.03404552]
[1641747684982,3.11751932,3165.6,3163.8,1.01278459]
[1641747684983,14.05,3164.8,3163.8,1.01278459]
[1641747685182,0.01275217,3164.1,3163.9,4.59343078]
[1641747685382,0.379,3164.7,3164.5,0.00404435]
[1641747685581,0.04664516,3165.2,3164.5,0.00404435]
[1641747685782,0.03404552,3165.2,3164.6,0.00397897]
[1641747686380,0.03404552,3165.2,3164.9,0.00404435]
[1641747686588,0.03404552,3165.2,3165.0,1.38765318]
[1641747686782,0.03404552,3165.2,3165.0,1.38935845]
[1641747686982,0.03404552,3165.2,3165.1,0.00113685]
[1641747687828,0.00113684,3165.5,3165.1,0.00113685]
[1641747689629,0.00113684,3165.5,3165.0,0.00170527]
[1641747691183,1.47457471,3165.5,3165.0,0.00170527]
[1641747691384,0.00113684,3165.5,3165.0,0.00170527]
[1641747691790,1.58142794,3165.5,3165.0,0.00170527]
[1641747691982,14.05,3165.3,3164.4,8.791e-05]
[1641747692182,0.01258927,3165.1,3164.4,8.791e-05]
[1641747692384,0.01258927,3165.1,3164.5,0.00284212]
[1641747692683,1.96445276,3164.9,3164.5,0.00284212]
[1641747692892,14.05,3164.8,3163.8,0.00305802]
[1641747693090,14.05,3164.3,3163.7,2.802e-05]
[1641747693286,14.05,3164.1,3163.9,2.69153475]
[1641747693484,0.3911418,3164.0,3162.9,1.34558833]
[1641747693683,0.01259069,3163.1,3162.9,0.01468833]
[1641747693885,0.01259069,3163.1,3163.0,0.00511581]
[1641747694288,1.1697458,3163.3,3163.0,0.00511581]
[1641747694637,0.379,3163.3,3162.8,0.00625266]
[1641747695233,0.379,3163.3,3162.4,0.00852635]
[1641747695633,9.298,3163.2,3162.4,0.00852635]
[1641747695833,9.298,3163.2,3161.7,2.0935729]
[1641747695834,9.298,3163.2,3162.3,0.00909478]
[1641747696334,1.51776274,3162.4,3162.3,0.00909478]
[1641747696535,15.56776274,3162.4,3162.3,0.00909478]
[1641747696734,14.059,3162.3,3161.4,5.53988664]
[1641747697043,0.79115,3161.7,3161.5,0.00454739]
[1641747697235,12.079,3161.6,3161.5,0.00454739]
[1641747697433,0.379,3161.6,3161.2,0.00625266]
[1641747698037,14.05,3161.4,3160.8,2.78655934]
[1641747698242,2.78455934,3160.8,3160.0,3.76509262]
[1641747698494,14.05,3161.4,3160.0,3.76509262]
[1641747698495,3.80589631,3161.7,3160.0,1.96992996]
[1641747698696,0.379,3161.6,3160.1,2.8016629]
[1641747698894,0.379,3161.6,3160.2,0.51964172]
[1641747699092,0.379,3161.6,3160.3,2.8016629]
[1641747699291,0.379,3161.6,3160.3,3.15394398]
[1641747699490,0.379,3161.6,3160.4,0.08530265]
[1641747699696,0.379,3161.6,3161.2,1.200287]
[1641747699895,4.3032,3161.9,3161.3,0.07906]
[1641747700202,0.00113685,3161.7,3161.3,0.08019684]
[1641747700394,4.25911546,3161.9,3161.4,0.07907]
[1641747700793,0.00170526,3161.8,3161.2,1.200287]
[1641747700991,0.00170526,3161.8,3161.3,0.07906]
[1641747701191,0.00113684,3161.7,3161.5,1.35220146]
[1641747701393,0.00113684,3161.7,3161.6,0.07906]
[1641747702130,4.60113684,3161.7,3161.6,0.02906]
[1641747702731,0.00113684,3161.7,3161.6,0.02906]
[1641747703131,3.97907,3161.7,3161.6,0.02906]
[1641747704131,14.12907,3161.7,3161.3,0.00113685]
[1641747704431,0.07906,3161.6,3160.2,0.00852635]
[1641747704834,3.79271353,3161.6,3160.2,0.00852635]
[1641747705132,0.7911919,3161.5,3160.2,1.17528881]
[1641747705330,0.07908,3161.4,3160.2,1.17528881]
[1641747705531,0.07908,3161.4,3160.3,0.00795793]
[1641747705730,14.05,3161.7,3160.3,0.00795793]
[1641747705731,0.07908,3161.6,3160.3,0.00795793]
[1641747706184,1.58286,3160.9,3160.3,0.00795793]
[1641747706385,0.07908,3160.8,3159.9,0.01023162]
[1641747706583,0.07908,3160.8,3159.8,0.01080004]
[1641747706784,0.07908,3160.8,3159.8,2.83194484]
[1641747706986,0.07908,3160.8,3160.2,1.03485991]
[1641747707393,0.07908,3160.8,3160.3,0.00795793]
[1641747708186,1.22929841,3160.7,3159.8,0.01080004]
[1641747708388,1.22929841,3160.7,3159.7,0.9394361]
[1641747708389,14.05,3160.5,3159.7,0.01083614]
[1641747708587,14.1291,3160.4,3159.1,0.03993614]
[1641747708789,14.1291,3160.4,3159.1,1.41279348]
[1641747708986,14.1291,3160.4,3159.2,0.00341055]
[1641747708987,0.00284211,3160.3,3159.2,0.00341055]
[1641747709190,0.07911,3160.2,3159.2,0.00341055]
[1641747709387,0.00227369,3160.2,3159.2,0.00341055]
[1641747709643,0.08081527,3160.1,3159.2,0.00341055]
[1641747709836,0.00170527,3160.1,3159.2,0.00341055]
[1641747710043,0.00113684,3160.0,3159.1,1.32626789]
[1641747710536,0.08308897,3159.9,3159.1,1.32626789]
[1641747710936,0.00341055,3159.8,3159.1,1.32626789]
[1641747711337,0.00284212,3159.7,3158.7,0.5]
[1641747711538,0.87059,3160.3,3158.7,1.43580213]
[1641747711736,0.87059,3160.3,3158.8,0.00227369]
[1641747711938,0.00284212,3160.2,3158.8,0.00227369]
[1641747712137,1.6623489,3160.1,3158.8,0.00227369]
[1641747712337,1.6623489,3160.1,3158.5,0.07911]
[1641747712338,1.6646226,3160.1,3158.6,0.00625266]
[1641747712541,0.00170527,3160.0,3159.0,1.0635742]
[1641747712740,0.07911,3159.9,3159.0,1.0635742]
[1641747712939,0.08024685,3159.9,3159.1,0.00341054]
[1641747713139,0.00113685,3159.9,3159.1,0.00341054]
[1641747713386,0.00113685,3159.9,3159.2,0.00102018]
[1641747713687,0.00113685,3159.9,3159.3,0.00227369]
[1641747713688,0.07911,3159.8,3159.3,0.00227369]
[1641747714084,0.07911,3159.8,3158.4,0.07911]
[1641747714290,0.00227369,3159.7,3158.4,0.07911]
[1641747714487,5.4,3159.5,3158.1,0.5]
[1641747714690,0.00625266,3159.6,3158.2,2.88236767]
[1641747714888,0.07914,3160.2,3158.2,2.88236767]
[1641747714889,0.00511581,3159.4,3158.5,0.79133]
[1641747715189,0.00454739,3159.3,3158.6,0.47484]
[1641747715586,0.00397896,3159.2,3158.6,0.47484]
[1641747715786,0.00397896,3159.2,3158.7,2.52885268]
[1641747715988,10.24784,3160.7,3158.7,2.52885268]
[1641747715989,0.00341054,3159.1,3158.7,2.52885268]
[1641747716187,0.00341054,3159.1,3158.7,1.26760707]
[1641747716388,0.07914,3160.0,3159.5,1.21722755]
[1641747716588,0.07914,3160.0,3158.2,2.81804237]
[1641747716589,0.07914,3160.0,3158.8,0.00170527]
[1641747716788,0.08425581,3160.0,3158.8,0.00170527]
[1641747717154,0.79166,3159.6,3158.4,0.00397896]
[1641747717436,0.0120827,3160.1,3158.4,0.00397896]
[1641747717437,8.23680369,3159.5,3158.4,0.00397896]
[1641747717636,8.15767369,3159.5,3159.1,1.42254072]
[1641747717939,0.00170527,3159.4,3159.1,1.42254072]
[1641747718136,0.00170527,3159.4,3158.4,0.00397896]
[1641747718335,4.4405,3159.5,3158.4,0.00397896]
[1641747718336,0.00113685,3159.3,3158.4,0.00397896]
[1641747718736,4.4405,3159.5,3158.4,0.00397896]
[1641747718737,0.00170527,3159.4,3158.4,0.00397896]
[1641747718936,3.27434987,3159.5,3158.5,0.07914]
[1641747719136,3.27434987,3159.5,3158.7,0.01245704]
[1641747719336,3.27434987,3159.5,3159.1,1.12519044]
[1641747719738,3.27434987,3159.5,3159.2,0.00113685]
[1641747719739,0.39962356,3159.5,3159.2,0.00113685]
[1641747720139,0.07913,3159.8,3159.2,0.00113685]
[1641747720341,0.87075,3159.8,3159.2,0.00113685]
[1641747720542,0.00170527,3159.7,3158.8,0.00341054]
[1641747720888,0.08026685,3159.6,3158.8,0.00341054]
[1641747722688,0.08026685,3159.6,3158.3,0.0121429]
[1641747722888,25.0,3158.8,3158.3,0.0121429]
[1641747723095,25.0,3158.8,3158.4,0.00568423]
[1641747723491,25.0,3158.8,3158.2,0.00682108]
[1641747723689,25.0,3158.8,3158.1,0.03595108]
[1641747723891,0.00284212,3158.7,3158.2,0.379]
[1641747724089,19.25250742,3158.8,3158.4,14.05]
[1641747724288,19.25250742,3158.8,3158.5,0.79134]
[1641747724488,16.71240742,3158.8,3158.6,1.52209557]
[1641747724738,16.18570742,3158.8,3158.6,2.8467699]
[1641747724938,16.18570742,3158.8,3158.6,1.52209557]
[1641747725742,8.99870064,3158.8,3158.6,1.52209557]
[1641747725937,3.9726,3160.4,3158.7,17.00754344]
[1641747726141,0.13819997,3160.6,3159.5,0.01236609]
[1641747726338,0.00682108,3159.9,3159.5,2.05049609]
[1641747726538,0.00682108,3159.9,3159.6,6.13986935]
[1641747726738,0.00625266,3159.8,3159.6,6.13986935]
[1641747726937,6.0366,3161.4,3159.6,6.13986935]
[1641747726938,6.0366,3161.4,3159.7,12.03437754]
[1641747727238,0.00852635,3161.3,3159.8,10.0]
[1641747727437,0.00852635,3161.3,3160.1,0.2191]
[1641747727639,6.0366,3161.4,3160.1,0.2191]
[1641747727640,0.00795792,3161.2,3160.2,0.379]
[1641747727837,0.00795792,3161.2,3161.1,2.71924325]
[1641747728044,1.1688,3162.1,3161.1,2.71924325]
[1641747728045,2.69112455,3162.4,3161.1,3.47844325]
[1641747728238,0.00463042,3161.8,3161.2,2.90664158]
[1641747728493,0.00852635,3161.3,3161.2,2.85664158]
[1641747728688,0.00852635,3161.3,3161.2,22.35564158]
[1641747728986,0.00463042,3161.8,3161.3,14.05]
[1641747729188,0.00463042,3161.8,3161.5,18.82]
[1641747729385,0.00227369,3161.7,3161.6,3.49992737]
[1641747729585,0.00227369,3161.7,3161.1,3.47844325]
[1641747729586,0.00227369,3161.7,3161.1,2.71924325]
[1641747729987,0.00170527,3161.6,3161.2,1.48208258]
[1641747730391,0.00113684,3161.5,3161.2,1.33208258]
[1641747730793,0.00568423,3162.3,3161.1,1.21798972]
[1641747730999,0.08475423,3162.3,3161.1,1.21798972]
[1641747731192,0.00511581,3162.2,3161.1,1.21798972]
[1641747731393,0.07906,3162.1,3161.1,1.21798972]
[1641747731591,0.08360739,3162.1,3160.6,1.16992]
[1641747731794,0.00397896,3162.0,3160.6,0.21392303]
[1641747731994,0.01270071,3161.6,3160.7,0.00341054]
[1641747732243,0.07907,3161.5,3160.7,0.00341054]
[1641747732439,1.58266,3161.2,3160.5,0.00454739]
[1641747732636,1.58266,3161.2,3159.5,0.15801122]
[1641747732637,0.79138,3160.7,3159.5,0.15801122]
[1641747732837,0.79138,3160.7,3159.6,0.0096632]
[1641747732838,0.87047,3160.6,3159.6,0.0096632]
[1641747733036,0.87047,3160.6,3159.5,0.14777959]
[1641747733037,0.0791,3160.6,3159.5,2.88886096]
[1641747733237,6.3051,3160.8,3159.4,1.09336902]
[1641747733238,0.00511581,3160.5,3159.4,1.09336902]
[1641747733437,0.0791,3160.4,3159.4,1.09336902]
[1641747733639,0.08364739,3160.4,3159.4,1.09336902]
[1641747733837,0.00397896,3160.3,3159.4,1.09336902]
[1641747734237,0.00341054,3160.2,3159.4,1.09336902]
[1641747734638,0.00284212,3160.1,3159.4,1.09336902]
[1641747734940,0.87046,3160.6,3159.9,1.2376253]
[1641747734941,0.00227369,3160.0,3159.9,1.2376253]
[1641747735139,6.3051,3160.8,3159.9,1.2376253]
[1641747735539,0.00284212,3160.5,3159.9,1.2376253]
[1641747735985,6.3051,3160.8,3159.9,1.2376253]
[1641747735986,0.0022737,3160.4,3160.2,6.11]
[1641747736385,0.0791,3160.9,3160.2,6.11]
[1641747736386,0.00170527,3160.3,3160.2,6.11]
[1641747737587,0.00463042,3160.9,3160.2,6.11]
[1641747737789,1.58733312,3160.9,3160.2,6.11]
[1641747737988,0.0791,3160.8,3160.2,6.11]
[1641747738188,0.0016,3160.4,3160.2,6.11]
[1641747738589,0.0016,3160.4,3160.2,6.11102012]